fUST/lending_fUST_20260226
["ID","MTS","AMOUNT","RATE_DAILY","PERIOD"]
[406706886,1772111445687,-354.8324539,0.00014221,2]
[406706887,1772111445696,-600.0,0.00014221,2]
[406706888,1772111445707,-1039.825409,0.00014247,2]
[406706889,1772111445717,-679.2488347,0.00014247,2]
[406706890,1772111445726,-549.16339973,0.00014247,2]
[406706891,1772111445736,-1000.0,0.00014247,2]
[406706892,1772111445747,-500.0,0.00014247,2]
[406706893,1772111445757,-202.89528617,0.00014247,2]
[406706894,1772111445766,-1000.0,0.00014247,2]
[406706895,1772111445775,-1000.0,0.00014247,2]
[406706896,1772111445785,-1000.0,0.00014247,2]
[406706897,1772111445796,-1082.69726098,0.00014247,2]
[406706898,1772111445805,-1000.0,0.00014247,2]
[406706899,1772111445814,-333.90052156,0.00014247,2]
[406706900,1772111445824,-1000.0,0.00014247,2]
[406706901,1772111445833,-823.51056296,0.00014247,2]
[406706902,1772111445843,-1000.0,0.00014247,2]
[406706903,1772111445853,-200.0,0.00014247,2]
[406706904,1772111445863,-1000.0,0.00014247,2]
[406706906,1772111445873,-1000.0,0.00014247,2]
[406706908,1772111445882,-1007.45448715,0.00014247,2]
[406706909,1772111445892,-1000.0,0.00014247,2]
[406706910,1772111445901,-1000.0,0.00014247,2]
[406706911,1772111445911,-1000.0,0.00014247,2]
[406706912,1772111445920,-500.0,0.00014247,2]
[406706913,1772111445930,-740.30072177,0.00014247,2]
[406706914,1772111445940,-1000.0,0.00014247,2]
[406706915,1772111445951,-1077.51464674,0.00014247,2]
[406706916,1772111445960,-1000.0,0.00014247,2]
[406706917,1772111445970,-1000.0,0.00014247,2]
[406706918,1772111445979,-1000.0,0.00014247,2]
[406706919,1772111445989,-1000.0,0.00014247,2]
[406706920,1772111445999,-1000.0,0.00014247,2]
[406706921,1772111446008,-500.0,0.00014247,2]
[406706922,1772111446018,-1000.0,0.00014247,2]
[406706923,1772111446027,-1000.0,0.00014247,2]
[406706924,1772111446036,-501.75096863,0.00014247,2]
[406706925,1772111446046,-894.26529793,0.00014247,2]
[406706926,1772111446055,-560.84012542,0.00014247,2]
[406706927,1772111446066,-1000.0,0.00014247,2]
[406706928,1772111446077,-912.24227018,0.00014247,2]
[406706929,1772111446088,-619.07343868,0.00014247,2]
[406706930,1772111446096,-1001.08865684,0.00014247,2]
[406706931,1772111446107,-500.6715172,0.00014247,2]
[406706932,1772111446116,-501.87378825,0.00014247,2]
[406706933,1772111446126,-1000.0,0.00014247,2]
[406706934,1772111446135,-1000.0,0.00014247,2]
[406706935,1772111446147,-576.30215063,0.00014247,2]
[406706936,1772111446156,-1002.63910554,0.00014247,2]
[406706937,1772111446166,-1000.0,0.00014247,2]
[406706938,1772111446175,-1000.82824789,0.00014247,2]
[406706939,1772111446185,-1000.0,0.00014247,2]
[406706940,1772111446194,-1000.0,0.00014247,2]
[406706941,1772111446203,-451.42653256,0.00014247,2]
[406706942,1772111446213,-1000.0,0.00014247,2]
[406706943,1772111446223,-619.39,0.00014268,2]
[406706944,1772111446232,-907.893855,0.00014361,2]
[406706945,1772111446243,-524.73,0.00014368,2]
[406706946,1772111446252,-500.0,0.00014368,2]
[406706947,1772111446262,-505.32151775,0.00014368,2]
[406706948,1772111446272,-1500.0,0.00014368,2]
[406706949,1772111446281,-189.35910026,0.00014368,2]
[406706950,1772111446290,-1500.0,0.00014368,2]
[406706951,1772111446300,-200.36688811,0.00014368,2]
[406706952,1772111446309,-1041.75758871,0.00014368,2]
[406706953,1772111446319,-1504.13667758,0.00014368,2]
[406706954,1772111446328,-1500.0,0.00014368,2]
[406706955,1772111446338,-745.91807794,0.00014368,2]
[406706956,1772111446348,-1500.0,0.00014368,2]
[406706957,1772111446357,-1500.0,0.00014368,2]
[406706958,1772111446367,-1500.0,0.00014368,2]
[406706959,1772111446376,-1500.0,0.00014368,2]
[406706960,1772111446385,-1500.0,0.00014368,2]
[406706961,1772111446395,-1500.0,0.00014368,2]
[406706962,1772111446558,-640.24841913,0.00014368,2]
[406706963,1772111446578,-1557.02949239,0.00014368,2]
[406706964,1772111446588,-1106.29775678,0.00014368,2]
[406706965,1772111446598,-1003.31154368,0.00014368,2]
[406706966,1772111446608,-1501.87726162,0.00014368,2]
[406706967,1772111446618,-1074.76129703,0.00014368,2]
[406706968,1772111446628,-1500.0,0.00014368,2]
[406706969,1772111446638,-1500.0,0.00014368,2]
[406706970,1772111446648,-500.0,0.00014368,2]
[406706971,1772111446658,-1500.0,0.00014368,2]
[406706972,1772111446667,-1502.07835873,0.00014368,2]
[406706973,1772111446676,-1500.0,0.00014368,2]
[406706974,1772111446685,-522.80270406,0.00014368,2]
[406706975,1772111446695,-1500.0,0.00014368,2]
[406706976,1772111446705,-420.0,0.00014547,2]
[406706977,1772111446715,-420.0,0.00014547,2]
[406706978,1772111446725,-420.0,0.00014547,2]
[406706979,1772111446734,-420.0,0.00014547,2]
[406706980,1772111446745,-500.0,0.0001455,2]
[406706981,1772111446754,-500.0,0.0001455,2]
[406706982,1772111446764,-500.0,0.0001455,2]
[406706983,1772111446774,-501.90577709,0.0001455,2]
[406706984,1772111446783,-500.0,0.0001455,2]
[406706985,1772111446793,-1680.0,0.00014595,2]
[406706986,1772111446803,-155.0,0.00014596,2]
[406706987,1772111446812,-560.98465938,0.00014642,2]
[406706988,1772111446822,-485.50149559,0.00014768,2]
[406706989,1772111446841,-476.5984474,0.00014795,2]
[406706990,1772111446862,-1500.0,0.00014795,2]
[406706991,1772111446879,-495.55091514,0.00014795,2]
[406706992,1772111446889,-1500.0,0.00014795,2]
[406706993,1772111446900,-505.92406699,0.00014795,2]
[406706994,1772111446911,-1113.63308772,0.00014795,2]
[406706995,1772111446922,-1520.02733939,0.00014795,2]
[406706996,1772111446931,-1503.28675363,0.00014795,2]
[406706997,1772111446943,-1649.03909534,0.00014795,2]
[406706998,1772111446953,-504.19545126,0.00014795,2]
[406706999,1772111446963,-918.1090138,0.00014795,2]
[406707000,1772111446972,-1287.09016,0.00014795,2]
[406707001,1772111446982,-1500.0,0.00014795,2]
[406707002,1772111446992,-1500.0,0.00014795,2]
[406707003,1772111447002,-1130.01259049,0.00014795,2]
[406707004,1772111447011,-361.71918558,0.00014795,2]
[406707005,1772111447020,-1500.0,0.00014795,2]
[406707006,1772111447031,-1074.20383967,0.00014795,2]
[406707007,1772111447040,-481.48361399,0.00014795,2]
[406707008,1772111447050,-720.0,0.00014887,2]
[406707009,1772111447063,-598.34696001,0.000149,2]
[406707010,1772111447073,-366.18075454,0.00014916,2]
[406707011,1772111447083,-1502.85553908,0.00014916,2]
[406707012,1772111447092,-2000.0,0.00014916,2]
[406707013,1772111447103,-970.10045035,0.00014916,2]
[406707014,1772111447113,-2000.0,0.00014916,2]
[406707015,1772111447122,-2000.0,0.00014916,2]
[406707016,1772111447133,-707.97438957,0.00014916,2]
[406707017,1772111447143,-1687.13834873,0.00014916,2]
[406707018,1772111447152,-1196.02225194,0.00014916,2]
[406707019,1772111447161,-2000.0,0.00014916,2]
[406707020,1772111447171,-2000.0,0.00014916,2]
[406707021,1772111447180,-2000.0,0.00014916,2]
[406707022,1772111447190,-903.55521875,0.00014916,2]
[406707023,1772111447199,-907.893855,0.00014941,2]
[406707024,1772111447208,-222.19744323,0.00014951,2]
[406707025,1772111447218,-53020.69705136,0.00015,2]
[406707026,1772111447228,-5560.43273534,0.00015,2]
[406707027,1772111447237,-174256.83038932,0.00015,3]
[406707028,1772111447246,-157.442,0.00015068,2]
[406707029,1772111447255,-186.791053,0.00015068,2]
[406707030,1772111447265,-318.94228427,0.00015203,2]
[406707031,1772111447274,-198.6,0.00015331,2]
[406707032,1772111447284,-502.43885624,0.00015342,2]
[406707033,1772111447293,-1003.98071554,0.00015342,2]
[406707034,1772111447303,-1183.8970796,0.00015342,2]
[406707035,1772111447312,-500.0,0.00015464,2]
[406707036,1772111447322,-2500.0,0.00015464,2]
[406707037,1772111447331,-1007.26876726,0.00015464,2]
[406707038,1772111447342,-1312.13494648,0.00015464,2]
[406707039,1772111447351,-858.77812888,0.00015464,2]
[406707040,1772111447360,-1735.0843298,0.00015464,2]
[406707041,1772111447370,-204.32,0.00015502,2]
[406707042,1772111447380,-907.893855,0.00015521,2]
[406707043,1772111447389,-500.0,0.00015589,2]
[406707044,1772111447400,-500.0,0.00015589,2]
[406707045,1772111447410,-307.55845053,0.00015589,2]
[406707046,1772111447421,-500.0,0.00015589,2]
[406707047,1772111447430,-500.0,0.00015589,2]
[406707048,1772111447439,-325.72621694,0.00015589,2]
[406707049,1772111447449,-552.21756849,0.00015589,2]
[406707050,1772111447459,-211.32,0.0001565,2]
[406707051,1772111447470,-9000.0,0.00015694,2]
[406707052,1772111447479,-5052.16850778,0.00015694,2]
[406707053,1772111447489,-1888.419062,0.000157,2]
[406707054,1772111447498,-768.671,0.000157,2]
[406707055,1772111447508,-2451.26049432,0.00015769,2]
[406707056,1772111447517,-2527.25713103,0.00015892,2]
[406707057,1772111447526,-587.0,0.00015949,2]
[406707058,1772111447536,-587.0,0.00015949,2]
[406707059,1772111447546,-540.0,0.00015949,2]
[406707060,1772111447555,-587.0,0.00015949,2]
[406707061,1772111447565,-3000.0,0.00016012,2]
[406707062,1772111447574,-2351.0,0.00016054,2]
[406707063,1772111447584,-907.893855,0.00016101,2]
[406707064,1772111447593,-154.8508855,0.00016292,2]
[406707065,1772111447603,-864.0,0.00016376,2]
[406707066,1772111447612,-1932.9451223,0.00016434,2]
[406707067,1772111447622,-100000.0,0.00016488,2]
[406707068,1772111447632,-1585.69394364,0.0001656,2]
[406707069,1772111447642,-907.893855,0.00016681,2]
[406707070,1772111447652,-2717.43770151,0.0001675,2]
[406707071,1772111447662,-6127.28417409,0.00017,2]
[406707072,1772111447671,-367.59449713,0.00017203,2]
[406707073,1772111447681,-555.0,0.00017486,2]
[406707074,1772111447690,-823.0,0.00017486,2]
[406707075,1772111447709,-823.0,0.00017486,2]
[406707076,1772111447731,-3292.0,0.0001766,2]
[406707077,1772111447750,-510.69039917,0.0001781,2]
[406707078,1772111447762,-359.44285728,0.00017923,2]
[406707079,1772111447774,-500.0,0.00017999,2]
[406707080,1772111447786,-500.0,0.00017999,2]
[406707081,1772111447797,-161635.32934235,0.00018,2]
[406707082,1772111447809,-1000.0,0.00018014,2]
[406707083,1772111447820,-271.87514343,0.00018398,2]
[406707084,1772111447831,-194.72792766,0.00018398,2]
[406707085,1772111447842,-201.93286099,0.00018398,2]
[406707086,1772111447853,-209.40437684,0.00018398,2]
[406707087,1772111447864,-217.15233878,0.00018398,2]
[406707088,1772111447875,-225.18697532,0.00018398,2]
[406707089,1772111447885,-233.51889341,0.00018398,2]
[406707090,1772111447896,-242.15909246,0.00018398,2]
[406707091,1772111447907,-251.11897888,0.00018398,2]
[406707092,1772111447918,-260.4103811,0.00018398,2]
[406707093,1772111447928,-270.0455652,0.00018398,2]
[406707094,1772111447941,-280.03725112,0.00018398,2]
[406707095,1772111447950,-290.39862941,0.00018398,2]
[406707096,1772111447962,-301.1433787,0.00018398,2]
[406707097,1772111447972,-2579.17784983,0.00018398,2]
[406707098,1772111447983,-205.52978782,0.00018398,2]
[406707099,1772111447994,-500.0,0.00018398,2]
[406707100,1772111448003,-500.0,0.00018398,2]
[406707101,1772111448012,-500.0,0.00018398,2]
[406707102,1772111448024,-500.0,0.00018398,2]
[406707103,1772111448035,-500.0,0.00018398,2]
[406707104,1772111448047,-500.0,0.00018398,2]
[406707105,1772111448059,-500.0,0.00018398,2]
[406707106,1772111448075,-500.0,0.00018398,2]
[406707107,1772111448086,-500.0,0.00018398,2]
[406707108,1772111448098,-500.0,0.00018398,2]
[406707109,1772111448109,-500.0,0.00018454,2]
[406707110,1772111448120,-2907.61827199,0.00018467,2]
[406707111,1772111448131,-2302.7411475,0.00018692,2]
[406707112,1772111448145,-500.0,0.00018999,2]
[406707113,1772111448154,-500.0,0.00018999,2]
[406707114,1772111448165,-500.0,0.00018999,2]
[406707115,1772111448176,-919.2427185,0.00019169,2]
[406707116,1772111448190,-1152.0,0.00019171,2]
[406707117,1772111448201,-298.0,0.00019171,2]
[406707118,1772111448211,-151.0,0.00019178,2]
[406707119,1772111448221,-416.24670998,0.00019203,2]
[406707120,1772111448232,-394.4942,0.00019339,30]
[406707121,1772111448243,-157.7475,0.00019339,30]
[406707122,1772111448254,-4609.0,0.00019426,2]
[406707123,1772111448265,-693.1571917,0.00019453,2]
[406707124,1772111448274,-1247.68294505,0.00019453,2]
[406707125,1772111448286,-2218.10301343,0.00019453,2]
[406707126,1772111448296,-260.125261,0.0001952,7]
[406707127,1772111448305,-744.71502317,0.00019576,2]
[406707128,1772111448316,-308.25447289,0.00019627,2]
[406707129,1772111448326,-352.29082616,0.00019627,2]
[406707130,1772111448337,-343.56090452,0.0001974,2]
[406707131,1772111448346,-1000.0,0.00019815,2]
[406707132,1772111448357,-244.0,0.00019815,2]
[406707133,1772111448366,-11617.17902442,0.000199,2]
[406707134,1772111448376,-17893.74842226,0.00019988,2]
[406707135,1772111448509,-3843.50179574,0.00019988,2]
[406707136,1772111448630,-31.29662536,0.00019988,2]
[406707137,1772111449166,-179.97,0.00012329,2]
[406707138,1772111449176,-11714.13774603,0.00019988,2]
[406707139,1772111449187,-350.46431277,0.0002,2]
[406707140,1772111449197,-5244.67244029,0.0002,2]
[406707141,1772111449208,-153.41539564,0.0002,2]
[406707142,1772111449219,-373.9095424,0.0002,2]
[406707143,1772111449228,-6983.63118548,0.0002,120]
[406707144,1772111449237,-110.39207281,0.0002,2]
[406707148,1772111645128,3763.0,0.0001542,120]
[406707150,1772111851422,7645.78908954,0.0001542,120]
[406707163,1772112436291,-5000.0,0.00011645,2]
[406707164,1772112436313,-188.2334349,0.00011762,2]
[406707165,1772112436337,-247.8,0.00012329,2]
[406707166,1772112436358,-206.5,0.00012329,2]
[406707167,1772112436382,-172.09,0.00012329,2]
[406707168,1772112436404,-263.73713911,0.00012533,2]
[406707169,1772112436427,-893.03466547,0.00012594,2]
[406707170,1772112458429,1212.43,0.000105,2]
[406707171,1772112545167,-860.45,0.00012329,2]
[406707172,1772112545189,-306.96533453,0.00012594,2]
[406707173,1772112545211,-300.0,0.00012594,2]
[406707174,1772112545232,-300.0,0.00012595,2]
[406707175,1772112545252,-300.0,0.00012595,2]
[406707176,1772112545274,-300.0,0.00012595,2]
[406707177,1772112545296,-300.0,0.00012595,2]
[406707178,1772112545317,-8699.97428383,0.00012596,2]
[406707179,1772112558686,1428.62868373,0.000105,2]
[406707180,1772112558713,2499.66131627,0.000105,2]
[406707193,1772112632253,-430.07393057,0.00012596,2]
[406707196,1772112632269,-258.46239632,0.00012596,2]
[406707198,1772112632284,-598.0,0.00012596,2]
[406707200,1772112632300,-200.0,0.00012603,2]
[406707202,1772112632315,-300.0,0.0001317,2]
[406707205,1772112632329,-300.0,0.0001317,2]
[406707207,1772112632344,-300.0,0.0001317,2]
[406707210,1772112632358,-1200.0,0.0001317,2]
[406707212,1772112632372,-6336.92528843,0.00013171,2]
[406707214,1772112632384,-6005.46585419,0.00013171,2]
[406707232,1772112632707,-1879.61516162,0.00013171,2]
[406707234,1772112632718,-2711.43230879,0.00013171,2]
[406707236,1772112632729,-7677.98114865,0.00013171,2]
[406707321,1772112638933,-918.24475119,0.00013171,2]
[406707322,1772112639851,-774.59947105,0.00013171,2]
[406707338,1772112640955,-50.69031311,0.00013171,2]
[406707357,1772112643640,-2021.30552104,0.00013171,2]
[406707358,1772112643652,-21623.74018193,0.00013171,2]
[406707359,1772112643661,-3836.25831258,0.00013173,2]
[406707360,1772112643670,-151.0,0.00013263,2]
[406707361,1772112643679,-151.0,0.00013263,2]
[406707362,1772112643689,-151.0,0.00013263,2]
[406707363,1772112643700,-151.0,0.00013263,2]
[406707364,1772112643710,-151.0,0.00013263,2]
[406707365,1772112643720,-151.0,0.00013263,2]
[406707366,1772112643729,-151.0,0.00013263,2]
[406707367,1772112643738,-151.0,0.00013263,2]
[406707368,1772112643747,-163.27583158,0.00013263,2]
[406707369,1772112643756,-500.0,0.00013273,2]
[406707371,1772112643765,-500.0,0.00013273,2]
[406707373,1772112643774,-501.10464966,0.00013273,2]
[406707374,1772112643783,-500.0,0.00013539,2]
[406707375,1772112643793,-500.0,0.00013539,2]
[406707376,1772112643802,-500.0,0.00013539,2]
[406707378,1772112643811,-377.60952635,0.00013539,2]
[406707380,1772112643820,-585.59827184,0.00013539,2]
[406707382,1772112643830,-585.59827184,0.00013539,2]
[406707384,1772112643839,-585.59827184,0.00013539,2]
[406707385,1772112643850,-585.59827184,0.00013539,2]
[406707386,1772112643860,-585.59827184,0.00013539,2]
[406707387,1772112643870,-585.59827184,0.00013539,2]
[406707388,1772112643880,-585.59827184,0.00013539,2]
[406707389,1772112643890,-585.59827184,0.00013539,2]
[406707390,1772112643899,-585.59827184,0.00013539,2]
[406707391,1772112643909,-585.59827184,0.00013539,2]
[406707392,1772112643918,-585.59827184,0.00013539,2]
[406707393,1772112643928,-585.59827184,0.00013539,2]
[406707394,1772112643937,-585.59827184,0.00013539,2]
[406707395,1772112643947,-585.59827184,0.00013539,2]
[406707396,1772112643956,-585.59827184,0.00013539,2]
[406707397,1772112643966,-585.59827184,0.00013539,2]
[406707398,1772112643975,-585.59827184,0.00013539,2]
[406707399,1772112643985,-585.59827184,0.00013539,2]
[406707400,1772112643994,-585.59827184,0.00013539,2]
[406707401,1772112644004,-585.59827184,0.00013539,2]
[406707402,1772112644014,-585.59827184,0.00013539,2]
[406707403,1772112644024,-585.59827184,0.00013539,2]
[406707404,1772112644034,-585.59827184,0.00013539,2]
[406707405,1772112644044,-585.59827184,0.00013539,2]
[406707406,1772112644053,-585.59827184,0.00013539,2]
[406707407,1772112644063,-585.59827184,0.00013539,2]
[406707408,1772112644073,-585.59827184,0.00013539,2]
[406707409,1772112644082,-585.59827184,0.00013539,2]
[406707410,1772112644092,-585.59827184,0.00013539,2]
[406707411,1772112644102,-585.59827184,0.00013539,2]
[406707412,1772112644111,-585.59827184,0.00013539,2]
[406707413,1772112644121,-585.59827184,0.00013539,2]
[406707414,1772112644131,-585.59827184,0.00013539,2]
[406707415,1772112644140,-585.59827184,0.00013539,2]
[406707416,1772112644150,-585.59827184,0.00013539,2]
[406707417,1772112644159,-585.59827184,0.00013539,2]
[406707418,1772112644169,-585.59827184,0.00013539,2]
[406707419,1772112644179,-585.59827184,0.00013539,2]
[406707420,1772112644188,-585.59827184,0.00013539,2]
[406707421,1772112644198,-585.59827184,0.00013539,2]
[406707422,1772112644207,-585.59827184,0.00013539,2]
[406707423,1772112644217,-585.59827184,0.00013539,2]
[406707424,1772112644227,-585.59827184,0.00013539,2]
[406707425,1772112644236,-585.59827184,0.00013539,2]
[406707426,1772112644246,-585.59827184,0.00013539,2]
[406707427,1772112644255,-585.59827184,0.00013539,2]
[406707428,1772112644264,-585.59827184,0.00013539,2]
[406707429,1772112644274,-500.0,0.00013539,2]
[406707430,1772112644283,-500.0,0.00013539,2]
[406707431,1772112644293,-500.0,0.00013539,2]
[406707432,1772112644302,-500.0,0.00013539,2]
[406707433,1772112644311,-500.0,0.00013539,2]
[406707434,1772112644320,-500.0,0.00013539,2]
[406707435,1772112644329,-500.0,0.00013539,2]
[406707436,1772112644339,-500.0,0.00013539,2]
[406707437,1772112644348,-500.0,0.00013539,2]
[406707438,1772112644358,-500.0,0.00013539,2]
[406707439,1772112644367,-500.0,0.00013539,2]
[406707440,1772112644378,-500.0,0.00013539,2]
[406707441,1772112644387,-500.0,0.00013539,2]
[406707442,1772112644396,-500.0,0.00013539,2]
[406707443,1772112644405,-500.0,0.00013539,2]
[406707444,1772112644415,-500.0,0.00013539,2]
[406707445,1772112644425,-500.0,0.00013539,2]
[406707446,1772112644437,-500.0,0.00013539,2]
[406707447,1772112644447,-500.0,0.00013539,2]
[406707448,1772112644456,-500.0,0.00013539,2]
[406707449,1772112644467,-500.0,0.00013539,2]
[406707450,1772112644476,-500.0,0.00013539,2]
[406707451,1772112644486,-500.0,0.00013539,2]
[406707452,1772112644495,-500.0,0.00013539,2]
[406707453,1772112644505,-500.0,0.00013539,2]
[406707454,1772112644515,-500.0,0.00013539,2]
[406707455,1772112644525,-500.0,0.00013539,2]
[406707456,1772112644534,-500.0,0.00013539,2]
[406707457,1772112644544,-500.0,0.00013539,2]
[406707458,1772112644553,-500.0,0.00013539,2]
[406707459,1772112644562,-500.0,0.00013539,2]
[406707460,1772112644572,-500.0,0.00013539,2]
[406707461,1772112644581,-500.0,0.00013539,2]
[406707462,1772112644590,-500.0,0.00013539,2]
[406707463,1772112644599,-500.0,0.00013539,2]
[406707464,1772112644609,-500.0,0.00013539,2]
[406707465,1772112644618,-479.15948107,0.00013539,2]
[406707466,1772112644629,-500.0,0.00013539,2]
[406707467,1772112644638,-585.59827184,0.00013539,2]
[406707468,1772112644648,-28495.67580101,0.0001354,2]
[406707469,1772112644657,-500.0,0.00013698,2]
[406707470,1772112644666,-500.0,0.00013698,2]
[406707471,1772112644676,-500.0,0.00013698,2]
[406707472,1772112644685,-349.17795885,0.00013698,2]
[406707473,1772112644695,-500.0,0.00013698,2]
[406707474,1772112644705,-500.0,0.00013698,2]
[406707475,1772112644715,-500.0,0.00013698,2]
[406707476,1772112644726,-500.0,0.00013698,2]
[406707477,1772112644735,-500.0,0.00013698,2]
[406707478,1772112644745,-500.0,0.00013698,2]
[406707479,1772112644755,-271.67452231,0.00013699,2]
[406707480,1772112644766,-171.72669464,0.00013699,2]
[406707481,1772112644776,-500.0,0.00013699,2]
[406707482,1772112644786,-266.17154987,0.00013699,2]
[406707483,1772112644797,-564.64954297,0.00013699,2]
[406707484,1772112644806,-500.0,0.00013699,2]
[406707485,1772112644815,-1900.0,0.000138,2]
[406707486,1772112644824,-500.0,0.0001382,2]
[406707487,1772112644834,-500.0,0.0001382,2]
[406707488,1772112644843,-1000.0,0.00013821,2]
[406707489,1772112644852,-300.0,0.00013971,2]
[406707490,1772112644862,-300.0,0.00013971,2]
[406707491,1772112644872,-300.0,0.00013971,2]
[406707492,1772112644881,-300.0,0.00013971,2]
[406707493,1772112644891,-300.0,0.00013971,2]
[406707494,1772112644900,-228.45659012,0.00013973,2]
[406707495,1772112644910,-523.91302111,0.00013973,2]
[406707496,1772112644919,-189.41,0.000141,2]
[406707497,1772112644928,-1476.63033019,0.00014175,2]
[406707498,1772112644938,-1410.53560227,0.00014175,2]
[406707499,1772112644948,-500.0,0.00014246,2]
[406707500,1772112644958,-500.0,0.00014246,2]
[406707501,1772112644968,-501.30980435,0.00014247,2]
[406707502,1772112644977,-170.1790269,0.00014247,2]
[406707503,1772112644987,-500.0,0.00014368,2]
[406707504,1772112644996,-361.72402766,0.00014368,2]
[406707505,1772112645006,-1500.0,0.00014368,2]
[406707506,1772112645016,-420.0,0.00014441,2]
[406707507,1772112645025,-1680.0,0.00014487,2]
[406707508,1772112645034,-304.98562766,0.00014596,2]
[406707509,1772112645043,-2048.0,0.000148,3]
[406707510,1772112645053,-2000.0,0.00014916,2]
[406707511,1772112645062,-200.0,0.00015011,2]
[406707512,1772112645071,-839.01778261,0.00015025,2]
[406707513,1772112645080,-150.0,0.00015063,2]
[406707514,1772112645090,-150.0,0.00015063,2]
[406707515,1772112645099,-150.0,0.00015118,2]
[406707516,1772112645108,-259.39545107,0.00015118,2]
[406707517,1772112645117,-3836.25831253,0.00015199,2]
[406707518,1772112645128,-549.29353592,0.000154,2]
[406707519,1772112645137,-2500.0,0.00015464,2]
[406707520,1772112645146,-2319.51153317,0.00015575,2]
[406707521,1772112645155,-1095.97526162,0.000157,30]
[406707522,1772112645165,-1000.0,0.000157,2]
[406707523,1772112645174,-250.0,0.00015708,2]
[406707524,1772112645183,-587.0,0.00015834,2]
[406707525,1772112645193,-2351.0,0.00015936,2]
[406707526,1772112645203,-3000.0,0.00016012,2]
[406707527,1772112645212,-258.0705537,0.00016222,2]
[406707528,1772112645222,-250.0,0.00016438,2]
[406707529,1772112645231,-1048.28733853,0.0001656,2]
[406707530,1772112645417,-351.508859,0.00016596,2]
[406707531,1772112645439,-3836.25831253,0.00017224,2]
[406707532,1772112645449,-823.0,0.00017361,2]
[406707533,1772112645459,-3292.0,0.00017529,2]
[406707534,1772112645469,-200.0,0.00017672,3]
[406707535,1772112645478,-179.76630381,0.00017923,2]
[406707536,1772112645488,-2696.81788663,0.00018375,2]
[406707537,1772112645498,-398.03209034,0.00018596,2]
[406707538,1772112645507,-500.0,0.0001888,2]
[406707539,1772112645517,-500.0,0.0001888,2]
[406707540,1772112645526,-500.0,0.0001888,2]
[406707541,1772112645535,-500.0,0.0001888,2]
[406707542,1772112645544,-500.0,0.0001888,2]
[406707543,1772112645554,-500.0,0.0001888,2]
[406707544,1772112645564,-284.24485141,0.0001888,2]
[406707545,1772112645574,-500.0,0.0001888,2]
[406707546,1772112645583,-219.24103367,0.0001888,2]
[406707547,1772112645592,-500.0,0.0001888,2]
[406707548,1772112645602,-500.0,0.0001888,2]
[406707549,1772112645611,-194.72792766,0.0001888,2]
[406707550,1772112645620,-165.39502439,0.0001888,2]
[406707551,1772112645629,-201.93286099,0.0001888,2]
[406707552,1772112645639,-209.40437684,0.0001888,2]
[406707553,1772112645649,-217.15233878,0.0001888,2]
[406707554,1772112645659,-225.18697532,0.0001888,2]
[406707555,1772112645669,-233.51889341,0.0001888,2]
[406707556,1772112645679,-242.15909246,0.0001888,2]
[406707557,1772112645688,-251.11897888,0.0001888,2]
[406707558,1772112645697,-260.4103811,0.0001888,2]
[406707559,1772112645707,-270.0455652,0.0001888,2]
[406707560,1772112645717,-280.03725112,0.0001888,2]
[406707561,1772112645726,-290.39862941,0.0001888,2]
[406707562,1772112645736,-301.1433787,0.0001888,2]
[406707563,1772112645745,-250.0,0.0001888,2]
[406707564,1772112645754,-250.0,0.0001888,2]
[406707565,1772112645764,-7400.0,0.000189,2]
[406707566,1772112645773,-100000.0,0.0001899,2]
[406707567,1772112645783,-1152.0,0.00019036,2]
[406707568,1772112645792,-156.0,0.00019178,2]
[406707569,1772112645801,-156.0,0.00019178,2]